[Event "Early-Titled-Tuesday-Blitz-September-12-2023"]
[Site "Chess.com"]
[Date "2023.09.12"]
[Round "1"]
[White "Leonid_Starozhilov"]
[Black "GiorgianBarbosa"]
[Result "1-0"]
[WhiteElo "2782"]
[BlackElo "2450"]
[TimeControl "180+1"]
[EndTime "8:06:39 PDT"]
[Termination "Leonid_Starozhilov won by resignation"]

1. e4 {[%clk 0:03:00.9]} 1... c5 {[%clk 0:02:59.4]} 2. Nf3 {[%clk 0:03:01.2]}
2... g6 {[%clk 0:03:00.3]} 3. c4 {[%clk 0:03:00.3]} 3... Bg7 {[%clk 0:03:00.3]}
4. d4 {[%clk 0:03:01]} 4... cxd4 {[%clk 0:03:01]} 5. Nxd4 {[%clk 0:03:01.5]}
5... Nc6 {[%clk 0:03:00.7]} 6. Be3 {[%clk 0:03:00.3]} 6... Nf6 {[%clk
0:03:00.6]} 7. Nc3 {[%clk 0:03:00.4]} 7... O-O {[%clk 0:03:00.5]} 8. Be2 {[%clk
0:03:00.4]} 8... Nxd4 {[%clk 0:03:00.4]} 9. Bxd4 {[%clk 0:03:00.8]} 9... d6
{[%clk 0:03:01.3]} 10. O-O {[%clk 0:03:00.4]} 10... Bd7 {[%clk 0:03:01.8]} 11.
f3 {[%clk 0:02:59.5]} 11... Bc6 {[%clk 0:03:01.3]} 12. Rc1 {[%clk 0:02:58.9]}
12... Nd7 {[%clk 0:03:02.2]} 13. Be3 {[%clk 0:02:58.5]} 13... a5 {[%clk
0:03:02.4]} 14. Qd2 {[%clk 0:02:58.2]} 14... Nc5 {[%clk 0:03:03]} 15. Rfd1
{[%clk 0:02:58.2]} 15... Be5 {[%clk 0:03:02.5]} 16. Kh1 {[%clk 0:02:47.8]} 16...
e6 {[%clk 0:03:01.9]} 17. Bd4 {[%clk 0:02:40.8]} 17... b6 {[%clk 0:02:56.7]} 18.
f4 {[%clk 0:02:25.7]} 18... Bxd4 {[%clk 0:02:47.5]} 19. Qxd4 {[%clk 0:02:26.6]}
19... Qh4 {[%clk 0:02:43.9]} 20. Qe3 {[%clk 0:02:11.2]} 20... Rad8 {[%clk
0:02:36.1]} 21. Bf3 {[%clk 0:02:10.2]} 21... Qe7 {[%clk 0:02:17.1]} 22. Rd2
{[%clk 0:01:56.8]} 22... h5 {[%clk 0:02:15.2]} 23. Rcd1 {[%clk 0:01:55.5]} 23...
h4 {[%clk 0:02:14.1]} 24. Kg1 {[%clk 0:01:52.1]} 24... Kg7 {[%clk 0:02:02.4]}
25. b3 {[%clk 0:01:44.6]} 25... h3 {[%clk 0:01:44.7]} 26. g3 {[%clk 0:01:43.8]}
26... Qc7 {[%clk 0:01:32.4]} 27. Qf2 {[%clk 0:01:21.9]} 27... Qb7 {[%clk
0:01:24.7]} 28. Rxd6 {[%clk 0:01:19.1]} 28... Rxd6 {[%clk 0:01:24.2]} 29. Rxd6
{[%clk 0:01:20]} 29... e5 {[%clk 0:01:09.2]} 30. fxe5 {[%clk 0:01:08]} 30...
Nxe4 {[%clk 0:01:04.9]} 31. Bxe4 {[%clk 0:01:03]} 31... Bxe4 {[%clk 0:01:05.8]}
32. Qf6+ {[%clk 0:01:03.1]} 32... Kg8 {[%clk 0:01:03.6]} 33. Rxb6 {[%clk
0:00:43.9]} 33... Qa7 {[%clk 0:00:53.4]} 34. Nxe4 {[%clk 0:00:41.8]} 34... a4
{[%clk 0:00:43]} 35. Qf2 {[%clk 0:00:33.8]} 35... axb3 {[%clk 0:00:40.5]} 36.
Rxg6+ {[%clk 0:00:31.3]} 36... fxg6 {[%clk 0:00:41.4]} 37. Qxa7 {[%clk
0:00:31.7]} 37... b2 {[%clk 0:00:39.7]} 38. Qb7 {[%clk 0:00:30]} 38... Rd8
{[%clk 0:00:40.6]} 39. Qxb2 {[%clk 0:00:29.1]} 1-0

[Event "Early-Titled-Tuesday-Blitz-September-12-2023"]
[Site "Chess.com"]
[Date "2023.09.12"]
[Round "1"]
[White "Tssunami"]
[Black "Rakhmanov_Aleksandr"]
[Result "0-1"]
[WhiteElo "2450"]
[BlackElo "2783"]
[TimeControl "180+1"]
[EndTime "8:06:42 PDT"]
[Termination "Rakhmanov_Aleksandr won by checkmate"]

1. e4 {[%clk 0:03:00]} 1... c5 {[%clk 0:02:58.9]} 2. d4 {[%clk 0:03:00.9]} 2...
cxd4 {[%clk 0:02:58.2]} 3. c3 {[%clk 0:03:01.3]} 3... d3 {[%clk 0:02:58.1]} 4.
Bxd3 {[%clk 0:03:01.3]} 4... Nc6 {[%clk 0:02:59]} 5. Nf3 {[%clk 0:02:59.8]} 5...
g6 {[%clk 0:02:59.9]} 6. O-O {[%clk 0:02:59.7]} 6... Bg7 {[%clk 0:02:58]} 7. Re1
{[%clk 0:02:54.5]} 7... d6 {[%clk 0:02:56.6]} 8. Nbd2 {[%clk 0:02:52.4]} 8...
Nf6 {[%clk 0:02:55.5]} 9. Nc4 {[%clk 0:02:49.7]} 9... O-O {[%clk 0:02:52.1]} 10.
h3 {[%clk 0:02:50]} 10... Be6 {[%clk 0:02:50.6]} 11. Bg5 {[%clk 0:02:42.3]}
11... Nd7 {[%clk 0:02:46.5]} 12. Bh4 {[%clk 0:02:19.9]} 12... h6 {[%clk
0:02:44.4]} 13. Nxd6 {[%clk 0:02:09.7]} 13... Nde5 {[%clk 0:02:31.3]} 14. Nxe5
{[%clk 0:01:48.6]} 14... Nxe5 {[%clk 0:02:32.2]} 15. Nxb7 {[%clk 0:01:47.5]}
15... Qxd3 {[%clk 0:02:30.3]} 16. Bxe7 {[%clk 0:01:46.4]} 16... Rfb8 {[%clk
0:02:20.6]} 17. Nc5 {[%clk 0:01:19.8]} 17... Qxd1 {[%clk 0:02:19.9]} 18. Rexd1
{[%clk 0:01:20.2]} 18... Rxb2 {[%clk 0:02:20.1]} 19. Nxe6 {[%clk 0:01:19.9]}
19... fxe6 {[%clk 0:02:20.6]} 20. Rd6 {[%clk 0:01:16.5]} 20... Re8 {[%clk
0:02:09.6]} 21. Bh4 {[%clk 0:01:11.4]} 21... Nc4 {[%clk 0:01:59.8]} 22. Ra6
{[%clk 0:01:10.8]} 22... Rb7 {[%clk 0:01:56.9]} 23. Rc1 {[%clk 0:01:07]} 23...
g5 {[%clk 0:01:52.6]} 24. Bg3 {[%clk 0:01:06.4]} 24... Be5 {[%clk 0:01:52.8]}
25. Bxe5 {[%clk 0:01:03.9]} 25... Nxe5 {[%clk 0:01:53.7]} 26. c4 {[%clk
0:00:57.8]} 26... Rc7 {[%clk 0:01:53]} 27. c5 {[%clk 0:00:46.6]} 27... Nd3
{[%clk 0:01:49.2]} 28. Rc3 {[%clk 0:00:42.2]} 28... Nxc5 {[%clk 0:01:48.3]} 29.
Ra5 {[%clk 0:00:40.2]} 29... Rec8 {[%clk 0:01:48.1]} 30. f3 {[%clk 0:00:33.8]}
30... Kf7 {[%clk 0:01:44.9]} 31. Kh2 {[%clk 0:00:31]} 31... Kf6 {[%clk
0:01:38.7]} 32. h4 {[%clk 0:00:31.1]} 32... Nd7 {[%clk 0:01:31.5]} 33. hxg5+
{[%clk 0:00:28.2]} 33... hxg5 {[%clk 0:01:30.6]} 34. Rxc7 {[%clk 0:00:27.4]}
34... Rxc7 {[%clk 0:01:31.5]} 35. Kg3 {[%clk 0:00:27.9]} 35... Ne5 {[%clk
0:01:31.3]} 36. a4 {[%clk 0:00:24.2]} 36... Nd3 {[%clk 0:01:26.1]} 37. Kg4
{[%clk 0:00:22.3]} 37... Nf2+ {[%clk 0:01:10.3]} 38. Kg3 {[%clk 0:00:21.8]}
38... Nd3 {[%clk 0:01:04.6]} 39. Kg4 {[%clk 0:00:22.1]} 39... Rh7 {[%clk
0:00:59.7]} 40. Rb5 {[%clk 0:00:18.4]} 40... Nf2+ {[%clk 0:00:57.5]} 41. Kg3
{[%clk 0:00:18.4]} 41... Nh1+ {[%clk 0:00:57.6]} 42. Kg4 {[%clk 0:00:18.4]}
42... Rh4# {[%clk 0:00:57.8]} 0-1

[Event "Early-Titled-Tuesday-Blitz-September-12-2023"]
[Site "Chess.com"]
[Date "2023.09.12"]
[Round "1"]
[White "S-Fazulyanov"]
[Black "sokidze"]
[Result "0-1"]
[WhiteElo "2441"]
[BlackElo "2777"]
[TimeControl "180+1"]
[EndTime "8:06:44 PDT"]
[Termination "sokidze won by resignation"]

1. e4 {[%clk 0:03:00]} 1... c5 {[%clk 0:03:00.5]} 2. Nf3 {[%clk 0:03:00.4]} 2...
Nc6 {[%clk 0:03:00.4]} 3. d4 {[%clk 0:02:57.1]} 3... cxd4 {[%clk 0:03:00.5]} 4.
Nxd4 {[%clk 0:02:58]} 4... Nf6 {[%clk 0:03:01]} 5. Nc3 {[%clk 0:02:58.5]} 5...
e5 {[%clk 0:03:01.8]} 6. Ndb5 {[%clk 0:02:58.6]} 6... d6 {[%clk 0:03:02.3]} 7.
Nd5 {[%clk 0:02:59.2]} 7... Nxd5 {[%clk 0:03:02.3]} 8. exd5 {[%clk 0:03:00.1]}
8... Nb8 {[%clk 0:03:02.3]} 9. c4 {[%clk 0:03:00.3]} 9... Be7 {[%clk 0:02:34.3]}
10. Be2 {[%clk 0:02:59.6]} 10... O-O {[%clk 0:02:33.7]} 11. O-O {[%clk
0:02:59.4]} 11... a6 {[%clk 0:02:33]} 12. Nc3 {[%clk 0:02:59]} 12... f5 {[%clk
0:02:33.2]} 13. f4 {[%clk 0:02:58.7]} 13... Nd7 {[%clk 0:02:32.6]} 14. Kh1
{[%clk 0:02:50.7]} 14... Bf6 {[%clk 0:02:23.5]} 15. Be3 {[%clk 0:02:49.6]} 15...
exf4 {[%clk 0:02:18]} 16. Bxf4 {[%clk 0:02:50.3]} 16... Ne5 {[%clk 0:02:18.3]}
17. Rc1 {[%clk 0:02:48.1]} 17... b6 {[%clk 0:02:17.3]} 18. b4 {[%clk 0:02:47.4]}
18... Bd7 {[%clk 0:01:51]} 19. Qd2 {[%clk 0:02:41.8]} 19... Rc8 {[%clk
0:01:46.6]} 20. Be3 {[%clk 0:01:58.9]} 20... Nxc4 {[%clk 0:01:41.8]} 21. Bxc4
{[%clk 0:01:50.7]} 21... Rxc4 {[%clk 0:01:42.7]} 22. Ne2 {[%clk 0:01:51.2]}
22... Rxc1 {[%clk 0:01:18.6]} 23. Rxc1 {[%clk 0:01:47.5]} 23... Be5 {[%clk
0:01:18.7]} 24. Nd4 {[%clk 0:01:39.4]} 24... f4 {[%clk 0:01:14.3]} 25. Bg1
{[%clk 0:01:34.7]} 25... Qf6 {[%clk 0:00:48.6]} 26. Nf3 {[%clk 0:01:14]} 26...
b5 {[%clk 0:00:47.1]} 27. Nxe5 {[%clk 0:00:54.3]} 27... Qxe5 {[%clk 0:00:45.7]}
28. Rc7 {[%clk 0:00:53.7]} 28... Rf7 {[%clk 0:00:46.3]} 29. Qd4 {[%clk
0:00:49.7]} 29... Qf5 {[%clk 0:00:33.5]} 30. Qd2 {[%clk 0:00:28.3]} 30... f3
{[%clk 0:00:28.3]} 31. gxf3 {[%clk 0:00:29.2]} 31... Qxf3+ {[%clk 0:00:29.2]}
32. Qg2 {[%clk 0:00:29.8]} 32... Qxg2+ {[%clk 0:00:29.8]} 33. Kxg2 {[%clk
0:00:30.7]} 33... Bh3+ {[%clk 0:00:30.6]} 34. Kxh3 {[%clk 0:00:31.1]} 34... Rxc7
{[%clk 0:00:31.5]} 35. Bf2 {[%clk 0:00:25]} 35... Kf7 {[%clk 0:00:30.5]} 36. Kg4
{[%clk 0:00:24.6]} 36... Rc4+ {[%clk 0:00:30.1]} 0-1

[Event "Early-Titled-Tuesday-Blitz-September-12-2023"]
[Site "Chess.com"]
[Date "2023.09.12"]
[Round "1"]
[White "JiaHaoxiang"]
[Black "DKmirl"]
[Result "1-0"]
[WhiteElo "2582"]
[BlackElo "2265"]
[TimeControl "180+1"]
[EndTime "8:06:44 PDT"]
[Termination "JiaHaoxiang won on time"]

1. d4 {[%clk 0:02:59.4]} 1... Nf6 {[%clk 0:02:44.4]} 2. Nf3 {[%clk 0:02:53.7]}
2... e6 {[%clk 0:02:40.6]} 3. Bf4 {[%clk 0:02:46.6]} 3... c5 {[%clk 0:02:34.3]}
4. c3 {[%clk 0:02:45.5]} 4... cxd4 {[%clk 0:02:30.4]} 5. cxd4 {[%clk 0:02:46.4]}
5... b6 {[%clk 0:02:30.8]} 6. Nc3 {[%clk 0:02:44.7]} 6... Be7 {[%clk 0:02:24.8]}
7. e4 {[%clk 0:02:39.1]} 7... d6 {[%clk 0:02:24]} 8. Bb5+ {[%clk 0:02:20.1]}
8... Bd7 {[%clk 0:02:20.1]} 9. Rc1 {[%clk 0:02:19.7]} 9... O-O {[%clk
0:02:17.1]} 10. O-O {[%clk 0:02:18.3]} 10... a6 {[%clk 0:02:08.7]} 11. Bd3
{[%clk 0:02:18.4]} 11... Ne8 {[%clk 0:01:37.6]} 12. Qe2 {[%clk 0:02:13.5]} 12...
Nc6 {[%clk 0:01:31.8]} 13. d5 {[%clk 0:02:09.3]} 13... Nb4 {[%clk 0:00:56.5]}
14. Bb1 {[%clk 0:02:03.9]} 14... e5 {[%clk 0:00:55.8]} 15. Be3 {[%clk
0:02:01.9]} 15... a5 {[%clk 0:00:52.4]} 16. a3 {[%clk 0:01:51.4]} 16... Na6
{[%clk 0:00:52.4]} 17. Bd3 {[%clk 0:01:47.5]} 17... Nc5 {[%clk 0:00:50.1]} 18.
Bb5 {[%clk 0:01:45.9]} 18... Nf6 {[%clk 0:00:47.6]} 19. Bxc5 {[%clk 0:01:43.9]}
19... bxc5 {[%clk 0:00:47.2]} 20. Nd2 {[%clk 0:01:44.5]} 20... Rb8 {[%clk
0:00:45.9]} 21. a4 {[%clk 0:01:44.3]} 21... Ne8 {[%clk 0:00:34.1]} 22. Nc4
{[%clk 0:01:42.8]} 22... Nc7 {[%clk 0:00:33.5]} 23. Bxd7 {[%clk 0:01:21.2]}
23... Qxd7 {[%clk 0:00:33.4]} 24. Nxa5 {[%clk 0:01:21.9]} 24... Rb4 {[%clk
0:00:18.7]} 25. Nc6 {[%clk 0:01:21]} 25... Rb7 {[%clk 0:00:16.7]} 26. a5 {[%clk
0:01:19.1]} 26... Ra8 {[%clk 0:00:15.8]} 27. Ra1 {[%clk 0:01:18.6]} 27... Na6
{[%clk 0:00:15.1]} 28. Na4 {[%clk 0:01:15.8]} 28... Nb4 {[%clk 0:00:14.5]} 29.
Nb6 {[%clk 0:01:15.2]} 29... Rxb6 {[%clk 0:00:08.2]} 30. axb6 {[%clk 0:01:16.1]}
30... Rxa1 {[%clk 0:00:07.4]} 31. Nxe7+ {[%clk 0:01:16.3]} 31... Qxe7 {[%clk
0:00:06.9]} 32. Rxa1 {[%clk 0:01:17.2]} 32... g6 {[%clk 0:00:06.7]} 33. Qb5
{[%clk 0:01:16.3]} 33... Qg5 {[%clk 0:00:03.9]} 34. b7 {[%clk 0:01:15]} 34...
Kg7 {[%clk 0:00:03.3]} 35. b8=Q {[%clk 0:01:15]} 35... Nc2 {[%clk 0:00:04]} 36.
Rf1 {[%clk 0:01:10.1]} 36... Nd4 {[%clk 0:00:04.1]} 37. Qd3 {[%clk 0:01:08.4]}
37... Qf4 {[%clk 0:00:02.8]} 38. Qxd6 {[%clk 0:01:07.9]} 38... h5 {[%clk
0:00:02.7]} 39. Qxc5 {[%clk 0:01:07.4]} 39... h4 {[%clk 0:00:03]} 40. Qe3 {[%clk
0:01:06.5]} 40... Qg4 {[%clk 0:00:01.9]} 41. h3 {[%clk 0:01:06.3]} 41... Ne2+
{[%clk 0:00:01.6]} 42. Kh2 {[%clk 0:01:05.1]} 1-0

[Event "Early-Titled-Tuesday-Blitz-September-12-2023"]
[Site "Chess.com"]
[Date "2023.09.12"]
[Round "1"]
[White "masnyszachistaaa"]
[Black "inagreV"]
[Result "0-1"]
[WhiteElo "2556"]
[BlackElo "2259"]
[TimeControl "180+1"]
[EndTime "8:06:44 PDT"]
[Termination "inagreV won on time"]

1. e4 {[%clk 0:03:00.9]} 1... e5 {[%clk 0:02:59.7]} 2. Nf3 {[%clk 0:03:00.3]}
2... Nc6 {[%clk 0:03:00.2]} 3. Bb5 {[%clk 0:02:58.8]} 3... a6 {[%clk 0:03:00.2]}
4. Ba4 {[%clk 0:02:59.1]} 4... Nf6 {[%clk 0:02:59.9]} 5. O-O {[%clk 0:02:59.3]}
5... b5 {[%clk 0:03:00.2]} 6. Bb3 {[%clk 0:02:59.1]} 6... Bc5 {[%clk 0:03:01.1]}
7. d3 {[%clk 0:02:57.6]} 7... d6 {[%clk 0:03:00.8]} 8. c3 {[%clk 0:02:57.7]}
8... h6 {[%clk 0:03:00.8]} 9. Nbd2 {[%clk 0:02:57.6]} 9... Ne7 {[%clk
0:02:59.9]} 10. d4 {[%clk 0:02:54.5]} 10... Bb6 {[%clk 0:02:54.9]} 11. dxe5
{[%clk 0:02:51.2]} 11... dxe5 {[%clk 0:02:55.8]} 12. Nxe5 {[%clk 0:02:51.6]}
12... O-O {[%clk 0:02:56.5]} 13. Qe2 {[%clk 0:02:46.8]} 13... Bb7 {[%clk
0:02:55.4]} 14. Bc2 {[%clk 0:02:37.3]} 14... Qd6 {[%clk 0:02:45.3]} 15. Ng4
{[%clk 0:02:33.1]} 15... Nxg4 {[%clk 0:02:38.2]} 16. Qxg4 {[%clk 0:02:34]} 16...
Rfe8 {[%clk 0:02:34.9]} 17. Nf3 {[%clk 0:02:25.5]} 17... Ng6 {[%clk 0:02:34.1]}
18. Re1 {[%clk 0:02:20.6]} 18... Qf6 {[%clk 0:02:27.1]} 19. Be3 {[%clk
0:02:13.8]} 19... Bxe3 {[%clk 0:02:25.9]} 20. Rxe3 {[%clk 0:02:14.7]} 20... Rad8
{[%clk 0:02:23.5]} 21. Rae1 {[%clk 0:02:05.5]} 21... Ne5 {[%clk 0:01:57.7]} 22.
Nxe5 {[%clk 0:02:03.4]} 22... Qxe5 {[%clk 0:01:58.6]} 23. f4 {[%clk 0:01:58.6]}
23... Qc5 {[%clk 0:01:58.8]} 24. Kh1 {[%clk 0:01:32.6]} 24... f5 {[%clk
0:01:57.9]} 25. Qe2 {[%clk 0:01:27.2]} 25... fxe4 {[%clk 0:01:54.5]} 26. Bxe4
{[%clk 0:01:28.1]} 26... Bxe4 {[%clk 0:01:43]} 27. Rxe4 {[%clk 0:01:29]} 27...
Rxe4 {[%clk 0:01:41.2]} 28. Qxe4 {[%clk 0:01:29.9]} 28... Qf2 {[%clk 0:01:41.5]}
29. Rg1 {[%clk 0:00:46.5]} 29... Qxb2 {[%clk 0:01:38]} 30. Qe7 {[%clk
0:00:41.3]} 30... Rf8 {[%clk 0:01:34.1]} 31. Qxc7 {[%clk 0:00:35.9]} 31... Qxa2
{[%clk 0:01:34]} 32. h3 {[%clk 0:00:33.3]} 32... Qc4 {[%clk 0:01:28.7]} 33. Qd6
{[%clk 0:00:09.8]} 33... Qxc3 {[%clk 0:01:24.2]} 34. Qxa6 {[%clk 0:00:09.3]}
34... b4 {[%clk 0:01:22.2]} 35. Qe6+ {[%clk 0:00:08.8]} 35... Kh8 {[%clk
0:01:21.7]} 36. f5 {[%clk 0:00:06.8]} 36... b3 {[%clk 0:01:14.6]} 37. Kh2 {[%clk
0:00:04.8]} 37... b2 {[%clk 0:01:13]} 38. Qb6 {[%clk 0:00:02.4]} 38... Rxf5
{[%clk 0:01:08.8]} 39. Rb1 {[%clk 0:00:02.2]} 39... Qe5+ {[%clk 0:00:55.8]} 40.
Kh1 {[%clk 0:00:02.2]} 40... Rf6 {[%clk 0:00:51.2]} 0-1

[Event "Early-Titled-Tuesday-Blitz-September-12-2023"]
[Site "Chess.com"]
[Date "2023.09.12"]
[Round "1"]
[White "DumbKing75"]
[Black "emeli_chess"]
[Result "1-0"]
[WhiteElo "2657"]
[BlackElo "2361"]
[TimeControl "180+1"]
[EndTime "8:06:49 PDT"]
[Termination "DumbKing75 won by resignation"]

1. Nf3 {[%clk 0:03:00.1]} 1... f5 {[%clk 0:02:55.7]} 2. g3 {[%clk 0:02:52.5]}
2... Nf6 {[%clk 0:02:55.1]} 3. Bg2 {[%clk 0:02:52.9]} 3... g6 {[%clk 0:02:55.6]}
4. O-O {[%clk 0:02:53.6]} 4... Bg7 {[%clk 0:02:56]} 5. c4 {[%clk 0:02:53.6]}
5... d6 {[%clk 0:02:55.2]} 6. Nc3 {[%clk 0:02:54]} 6... e5 {[%clk 0:02:54.2]} 7.
d3 {[%clk 0:02:54.2]} 7... O-O {[%clk 0:02:53.6]} 8. Rb1 {[%clk 0:02:54.5]} 8...
h6 {[%clk 0:02:41.4]} 9. b4 {[%clk 0:02:49.5]} 9... Be6 {[%clk 0:02:39.4]} 10.
Nh4 {[%clk 0:02:32.7]} 10... g5 {[%clk 0:02:30.9]} 11. Bxb7 {[%clk 0:02:18.8]}
11... Nbd7 {[%clk 0:02:30.9]} 12. Bxa8 {[%clk 0:02:07]} 12... Qxa8 {[%clk
0:02:29.8]} 13. Ng2 {[%clk 0:02:00.1]} 13... f4 {[%clk 0:02:28]} 14. e4 {[%clk
0:01:49]} 14... f3 {[%clk 0:02:08.8]} 15. Ne3 {[%clk 0:01:27.6]} 15... g4 {[%clk
0:02:07.9]} 16. Ncd5 {[%clk 0:01:14.9]} 16... Qe8 {[%clk 0:02:01.8]} 17. h4
{[%clk 0:00:54.2]} 17... Qh5 {[%clk 0:01:48.3]} 18. Nxc7 {[%clk 0:00:38.7]}
18... Bf7 {[%clk 0:01:47.2]} 19. Ncd5 {[%clk 0:00:36]} 19... Re8 {[%clk
0:01:43.8]} 20. Nxf6+ {[%clk 0:00:30.3]} 20... Bxf6 {[%clk 0:01:41.7]} 21. Nf5
{[%clk 0:00:30.3]} 21... Nf8 {[%clk 0:01:37.1]} 22. Qd2 {[%clk 0:00:22.4]} 22...
Bg5 {[%clk 0:01:28.3]} 23. Nxh6+ {[%clk 0:00:15.9]} 23... Bxh6 {[%clk
0:01:08.3]} 24. Qxh6 {[%clk 0:00:16.8]} 24... Ne6 {[%clk 0:01:06.8]} 25. Qxh5
{[%clk 0:00:17.2]} 25... Bxh5 {[%clk 0:01:06.1]} 26. Be3 {[%clk 0:00:18.1]}
26... Re7 {[%clk 0:01:02.5]} 27. Rfc1 {[%clk 0:00:18.5]} 27... Be8 {[%clk
0:00:58.2]} 28. c5 {[%clk 0:00:18.7]} 28... Bb5 {[%clk 0:00:58.1]} 29. cxd6
{[%clk 0:00:18.6]} 29... Rd7 {[%clk 0:00:57.7]} 30. Rc8+ {[%clk 0:00:15.6]}
30... Kf7 {[%clk 0:00:57]} 31. Bc5 {[%clk 0:00:15.4]} 31... Bxd3 {[%clk
0:00:56.8]} 32. Re1 {[%clk 0:00:14.2]} 32... Be2 {[%clk 0:00:55.9]} 33. Ra8
{[%clk 0:00:10.6]} 33... Nxc5 {[%clk 0:00:53.3]} 34. bxc5 {[%clk 0:00:11.5]}
34... Ke6 {[%clk 0:00:51.1]} 35. Rc8 {[%clk 0:00:11.3]} 35... Rb7 {[%clk
0:00:50]} 36. c6 {[%clk 0:00:07]} 36... Rb1 {[%clk 0:00:44.4]} 37. Rxb1 {[%clk
0:00:06.5]} 1-0

[Event "Early-Titled-Tuesday-Blitz-September-12-2023"]
[Site "Chess.com"]
[Date "2023.09.12"]
[Round "1"]
[White "GP9isback23"]
[Black "crazy_m_attack"]
[Result "1-0"]
[WhiteElo "2678"]
[BlackElo "2379"]
[TimeControl "180+1"]
[EndTime "8:06:50 PDT"]
[Termination "GP9isback23 won on time"]

1. Nf3 {[%clk 0:03:00.1]} 1... Nf6 {[%clk 0:03:00]} 2. c4 {[%clk 0:02:57.5]}
2... e6 {[%clk 0:02:52.6]} 3. Nc3 {[%clk 0:02:57.4]} 3... d5 {[%clk 0:02:52.4]}
4. d4 {[%clk 0:02:57.3]} 4... Be7 {[%clk 0:02:43.5]} 5. Bg5 {[%clk 0:02:56.9]}
5... O-O {[%clk 0:02:43.3]} 6. e3 {[%clk 0:02:57.4]} 6... h6 {[%clk 0:02:43.8]}
7. Bh4 {[%clk 0:02:57.5]} 7... Ne4 {[%clk 0:02:42.1]} 8. Bxe7 {[%clk 0:02:57]}
8... Qxe7 {[%clk 0:02:43]} 9. Be2 {[%clk 0:02:49]} 9... Nxc3 {[%clk 0:02:28.1]}
10. bxc3 {[%clk 0:02:46.2]} 10... dxc4 {[%clk 0:02:29]} 11. Bxc4 {[%clk
0:02:46]} 11... c5 {[%clk 0:02:26.4]} 12. O-O {[%clk 0:02:45.7]} 12... Nc6
{[%clk 0:02:20.6]} 13. a4 {[%clk 0:02:42.7]} 13... b6 {[%clk 0:02:18.2]} 14. Be2
{[%clk 0:02:37.9]} 14... Bb7 {[%clk 0:02:17.2]} 15. Qb1 {[%clk 0:02:37.6]} 15...
Rfd8 {[%clk 0:02:01.7]} 16. Rd1 {[%clk 0:02:35.2]} 16... Rac8 {[%clk 0:01:59]}
17. Qb2 {[%clk 0:02:18.1]} 17... Na5 {[%clk 0:01:51.2]} 18. Rac1 {[%clk
0:02:17.8]} 18... c4 {[%clk 0:01:50.7]} 19. Nd2 {[%clk 0:02:16.5]} 19... Qd7
{[%clk 0:01:31.1]} 20. Qb4 {[%clk 0:02:13.2]} 20... Ba6 {[%clk 0:01:15.3]} 21.
Bf3 {[%clk 0:02:11.7]} 21... Nc6 {[%clk 0:01:06.4]} 22. Qa3 {[%clk 0:01:57.3]}
22... Qd6 {[%clk 0:00:57.5]} 23. Qa2 {[%clk 0:01:54.3]} 23... Na5 {[%clk
0:00:53.6]} 24. e4 {[%clk 0:01:54]} 24... e5 {[%clk 0:00:45.8]} 25. d5 {[%clk
0:01:52.6]} 25... Nb7 {[%clk 0:00:40.9]} 26. Bg4 {[%clk 0:01:52.1]} 26... Rc5
{[%clk 0:00:39.4]} 27. Be2 {[%clk 0:01:51.5]} 27... Na5 {[%clk 0:00:33.7]} 28.
f3 {[%clk 0:01:49.8]} 28... Rdc8 {[%clk 0:00:31.6]} 29. Nf1 {[%clk 0:01:49.9]}
29... f5 {[%clk 0:00:20.6]} 30. Nd2 {[%clk 0:01:46.4]} 30... f4 {[%clk
0:00:19.4]} 31. Rb1 {[%clk 0:01:44.7]} 31... R8c7 {[%clk 0:00:17.4]} 32. Rb4
{[%clk 0:01:44.8]} 32... Nb3 {[%clk 0:00:08.6]} 33. Qb2 {[%clk 0:01:34.9]} 33...
Nd4 {[%clk 0:00:04.3]} 34. Bf1 {[%clk 0:01:32]} 34... Nb3 {[%clk 0:00:03.6]} 35.
Nxb3 {[%clk 0:01:30.4]} 35... cxb3 {[%clk 0:00:04.1]} 36. Bxa6 {[%clk 0:01:30]}
36... Rxc3 {[%clk 0:00:04.5]} 37. Rb5 {[%clk 0:01:19.4]} 37... R7c4 {[%clk
0:00:02.6]} 38. h3 {[%clk 0:01:09.6]} 38... Qg6 {[%clk 0:00:02.3]} 39. Qf2
{[%clk 0:00:57.1]} 39... Rc2 {[%clk 0:00:02.1]} 40. Qf1 {[%clk 0:00:57.6]} 40...
b2 {[%clk 0:00:01.3]} 41. Rxb2 {[%clk 0:00:56]} 41... Rxb2 {[%clk 0:00:01.3]}
42. Bxc4 {[%clk 0:00:56.6]} 1-0

[Event "Early-Titled-Tuesday-Blitz-September-12-2023"]
[Site "Chess.com"]
[Date "2023.09.12"]
[Round "1"]
[White "DTChess"]
[Black "MightyGMpretender"]
[Result "1-0"]
[WhiteElo "2479"]
[BlackElo "2810"]
[TimeControl "180+1"]
[EndTime "8:06:52 PDT"]
[Termination "DTChess won by resignation"]

1. e4 {[%clk 0:03:00.9]} 1... g6 {[%clk 0:03:00.1]} 2. d4 {[%clk 0:03:01]} 2...
Bg7 {[%clk 0:03:00.3]} 3. Nc3 {[%clk 0:03:01.4]} 3... a6 {[%clk 0:03:00.2]} 4.
Nge2 {[%clk 0:03:01.4]} 4... d6 {[%clk 0:02:56.2]} 5. Be3 {[%clk 0:03:01]} 5...
b5 {[%clk 0:02:54.4]} 6. a3 {[%clk 0:03:01]} 6... Nd7 {[%clk 0:02:52.9]} 7. Qd2
{[%clk 0:02:59.9]} 7... Bb7 {[%clk 0:02:48.5]} 8. f3 {[%clk 0:02:57.5]} 8...
Ngf6 {[%clk 0:02:42]} 9. d5 {[%clk 0:02:54.6]} 9... O-O {[%clk 0:02:30.8]} 10.
h4 {[%clk 0:02:54.2]} 10... h5 {[%clk 0:02:26.2]} 11. Nd4 {[%clk 0:02:53.7]}
11... Ne5 {[%clk 0:02:20.9]} 12. Be2 {[%clk 0:02:51.1]} 12... c5 {[%clk
0:02:13.3]} 13. dxc6 {[%clk 0:02:49.8]} 13... Nxc6 {[%clk 0:02:13.9]} 14. g4
{[%clk 0:02:48.6]} 14... Ne5 {[%clk 0:01:54.9]} 15. O-O-O {[%clk 0:02:46.5]}
15... Rc8 {[%clk 0:01:52.9]} 16. gxh5 {[%clk 0:02:43.7]} 16... Nxh5 {[%clk
0:01:52.8]} 17. Rhg1 {[%clk 0:02:41]} 17... Nc4 {[%clk 0:01:40.4]} 18. Bxc4
{[%clk 0:02:39.5]} 18... Rxc4 {[%clk 0:01:41.3]} 19. Nde2 {[%clk 0:02:25.1]}
19... b4 {[%clk 0:01:23.7]} 20. axb4 {[%clk 0:02:24.2]} 20... Rxb4 {[%clk
0:01:24.6]} 21. Bd4 {[%clk 0:02:21.9]} 21... Rxd4 {[%clk 0:00:59.7]} 22. Nxd4
{[%clk 0:02:20.5]} 22... Qa5 {[%clk 0:01:00]} 23. Kb1 {[%clk 0:02:15]} 23... Rb8
{[%clk 0:00:59.7]} 24. Nb3 {[%clk 0:02:08.9]} 24... Qc7 {[%clk 0:00:49.2]} 25.
Rg5 {[%clk 0:02:06]} 25... Bh6 {[%clk 0:00:41.4]} 26. Rxg6+ {[%clk 0:01:57.3]}
26... Bg7 {[%clk 0:00:38.3]} 27. Rxg7+ {[%clk 0:01:55.8]} 27... Nxg7 {[%clk
0:00:37.4]} 28. Rg1 {[%clk 0:01:55.2]} 28... f6 {[%clk 0:00:27.4]} 29. Qh6
{[%clk 0:01:51.2]} 29... e6 {[%clk 0:00:26.7]} 30. Qxf6 {[%clk 0:01:44.2]} 30...
Qf7 {[%clk 0:00:26.4]} 31. Qg5 {[%clk 0:01:44.3]} 31... Kh7 {[%clk 0:00:20.6]}
32. h5 {[%clk 0:01:28.9]} 32... Rf8 {[%clk 0:00:19]} 33. h6 {[%clk 0:01:26]}
33... Ne8 {[%clk 0:00:19.6]} 34. Nd4 {[%clk 0:01:17.6]} 34... d5 {[%clk
0:00:17.2]} 35. exd5 {[%clk 0:01:09.4]} 35... Bxd5 {[%clk 0:00:18.1]} 36. Nxd5
{[%clk 0:01:03]} 36... exd5 {[%clk 0:00:19]} 37. Re1 {[%clk 0:01:01.5]} 37...
Kh8 {[%clk 0:00:15.8]} 38. Re7 {[%clk 0:00:52.1]} 38... Qf6 {[%clk 0:00:13.6]}
39. Qxf6+ {[%clk 0:00:39.1]} 39... Nxf6 {[%clk 0:00:14.5]} 40. Ra7 {[%clk
0:00:35.8]} 40... Nd7 {[%clk 0:00:13.2]} 41. Rxd7 {[%clk 0:00:35]} 1-0